[Event "German Bundesliga 2023-24"]
[Site "Germany"]
[Date "2024.02.23"]
[Round "9.52"]
[White "Vogel, Roven"]
[Black "Lammers, Markus"]
[Result "1-0"]
[ECO "D20"]
[WhiteElo "2471"]
[BlackElo "2336"]
[Annotator "TA"]
[PlyCount "73"]
[EventDate "2023.10.20"]
[EventType "team-tourn"]
[EventCountry "GER"]
[SourceTitle "playchess.com"]
[Source "ChessBase"]
[SourceQuality "1"]
[TimeControl "40/6000+30:3000+30"]

{[%evp 14,73,32,23,33,35,30,39,29,28,38,23,42,34,64,76,44,6,41,49,42,18,90,85,96,37,31,34,43,42,63,65,82,33,69,0,0,0,56,62,73,85,68,82,239,234,252,230,205,132,206,214,218,228,408,401,619,571,614,607,1105,672]} 1. d4 {[%emt 0:00:05]} d5 {[%emt 0:01:05]} 2. c4 {[%emt 0:00:09]} dxc4 {[%emt 0:00:20]} 3. e4 {[%emt 0:00:10]} e5 {[%emt 0:04:13]} 4. Nf3 {[%emt 0:00:15]} exd4 {[%emt 0:00:06]} 5. Bxc4 {[%emt 0:00:08]} Nc6 {[%emt 0:00:54]} 6. O-O {[%emt 0:00:09]} Be6 {[%emt 0:02:10]} 7. Bxe6 {[%emt 0:00:24]} fxe6 {[%emt 0:00:03]} 8. Qb3 {[%emt 0:00:10]} Qd7 {[%emt 0:01:52]} 9. Qxb7 {[%emt 0:00:07]} Rb8 {[%emt 0:00:18]} 10. Qa6 {[%emt 0:00:06]} Bd6 {[%emt 0:02:33] White is slightly better.} 11. Nbd2 {[%emt 0:02:45]} Nge7 {[%emt 0:03:59]} 12. Nb3 {[%emt 0:12:21]} e5 {[%emt 0:04:07]} 13. Bd2 {[%emt 0:05:15]} O-O {[%emt 0:00:50][%cal Of8f3]} 14. Qc4+ {[%emt 0:04:26]} Kh8 {[%emt 0:00:23][%cal Of8f3]} 15. Ng5 {[%emt 0:01:22]} Qe8 {[%emt 0:06:58][%cal Oa7a5] Against Nf7+} 16. Ne6 {[%emt 0:19:20]} Rf6 {[%emt 0:06:48] ...Qg8 would now be deadly.} 17. Nec5 {[%emt 0:00:46]} Qh5 {[%emt 0:03:16]} (17... Bxc5 $11 18. Nxc5 Ng6) 18. f3 $16 {[%emt 0:04:09]} (18. Nd7 $6 Rg6 19. Nxb8 Rxg2+ 20. Kxg2 Qg4+ 21. Kh1 Qf3+ 22. Kg1 Qg4+ 23. Kh1 Qf3+ 24. Kg1 Qg4+ 25. Kh1 $11) 18... Rg8 {[%emt 0:18:25]} 19. Qe2 {[%emt 0:04:37] White has more active pieces.} (19. Nd3 $16) 19... g5 {[%emt 0:03:07]} 20. Nd3 {[%emt 0:01:29]} Rh6 {[%emt 0:08:41]} 21. g3 {[%emt 0:02:56]} Rf6 {[%emt 0:01:16]} 22. Rac1 {[%emt 0:05:09]} Qf7 {[%emt 0:01:42]} 23. Kh1 {[%emt 0:13:51]} (23. Qd1 $16) 23... h6 $14 {[%emt 0:01:32]} 24. Na5 {[%emt 0:01:46]} (24. Nbc5 $14) 24... Nxa5 $11 {[%emt 0:03:30]} 25. Bxa5 {[%emt 0:00:02]} Qxa2 {[%emt 0:06:17]} ({Black should try} 25... Ng6 $11) 26. Bxc7 $14 {[%emt 0:02:19]} Bxc7 {[%emt 0:00:14]} 27. Rxc7 {[%emt 0:00:02][%cal Bc1c7,Bc7a7,Ba7a1][%mdl 32]} Ng6 {[%emt 0:00:10]} 28. Nb4 {[%emt 0:03:35] Repels Qa6} Qa5 {[%emt 0:12:50] Loses the game.} (28... Qa4 $16 29. Nd5 Rc6) 29. Nd5 $1 $18 {[%emt 0:01:02]} Rd6 {[%emt 0:01:53] aiming for ...Rxd5.} 30. Rfc1 {[%emt 0:05:33][%cal Of3f4]} Qa6 {[%emt 0:03:06]} 31. Qg2 {[%emt 0:02:47] And now Qh3 would win.} Qd3 {[%emt 0:04:44]} (31... Nf8 $16 {might work better.} 32. Rf7 g4) 32. Rxa7 {[%emt 0:06:39]} Rc6 {[%emt 0:00:12] [#]} 33. Rf1 $40 {[%emt 0:01:24][%mdl 128] Hoping for Nb4. White wants a kill.} (33. Rxc6 Qd1+ 34. Qg1 Qxf3+ 35. Qg2 Qd1+ 36. Qg1 Qf3+ 37. Qg2 Qd1+ 38. Qg1 Qf3+ $11) 33... Rgc8 $2 {[%emt 0:06:41] [#]} (33... Rc2 $2 34. Qh3 $18) (33... Rb8 {was necessary.} 34. Kg1 g4 (34... Rc2 $2 35. Qh3 $18) 35. fxg4 Rf8 (35... Rc2 $2 36. Qh3 $18)) 34. Raa1 $1 {[%emt 0:02:11] Black must now prevent Qh3.} ({Weaker is} 34. Nb4 Qxf1+ 35. Qxf1 Rc1 $16) 34... Rb8 {[%emt 0:02:04]} ({Avoid the trap} 34... Rc2 $2 35. Qh3 h5 36. Nb4 $18 (36. Qxh5+ Kg7 $18)) (34... Kg7 $142 35. Nb4 Qc4) 35. Qh3 {[%emt 0:02:15] White is clearly winning.} Nf8 {[%emt 0:00:28]} 36. Qf5 {[%emt 0:00:49]} Re8 {[%emt 0:01:07]} 37. Nb4 {[%emt 0:01:23][%csl LRc6,LRd3] Weighted Error Value: White=0.12 (very precise) /Black=0.35.  Mistake:       	White=3     	Black=6      Inaccurate:     	White=2     	Black=3      OK:         	White=10    	Black=9      Best:        	White=4     	Black=2      Strong:       	White=2     	---} 1-0

[Event "German Bundesliga 2023-24"]
[Site "Germany"]
[Date "2024.02.23"]
[Round "9.53"]
[White "Schulze, Torben"]
[Black "Neef, Maximilian"]
[Result "0-1"]
[ECO "C02"]
[WhiteElo "2325"]
[BlackElo "2466"]
[Annotator "RC"]
[PlyCount "86"]
[EventDate "2023.10.20"]
[EventType "team-tourn"]
[EventCountry "GER"]
[SourceTitle "playchess.com"]
[Source "ChessBase"]
[SourceQuality "1"]
[TimeControl "40/6000+30:3000+30"]

1. e4 {[%emt 0:00:30]} e6 {[%emt 0:00:08]} 2. d4 {[%emt 0:00:04]} d5 {[%emt 0:00:05]} 3. e5 {[%emt 0:00:11]} c5 {[%emt 0:00:09]} 4. c3 {[%emt 0:00:03]} Nc6 {[%emt 0:00:08]} 5. Nf3 {[%emt 0:00:12]} Qb6 {[%emt 0:00:08]} 6. a3 {[%emt 0:00:11]} Nh6 {[%emt 0:00:09]} 7. Bd3 {[%emt 0:00:38]} cxd4 {[%emt 0:00:41]} 8. O-O {[%emt 0:00:07]} Nf5 {[%emt 0:00:31]} 9. b4 {[%emt 0:00:39]} Be7 {[%emt 0:00:55]} 10. Re1 {[%emt 0:00:10]} Bd7 {[%emt 0:02:03]} 11. Bxf5 {[%emt 0:01:11]} exf5 {[%emt 0:00:10]} 12. cxd4 {[%emt 0:00:10]} O-O {[%emt 0:03:28]} 13. Nc3 {[%emt 0:01:33]} Be6 {[%emt 0:00:14]} 14. Qd3 {[%emt 0:01:19]} Rfc8 {[%emt 0:05:40]} 15. Na4 {[%emt 0:08:23]} Qd8 {[%emt 0:01:15]} 16. Nc5 {[%emt 0:01:23]} b6 {[%emt 0:05:28]} 17. Nxe6 {[%emt 0:02:31]} fxe6 {[%emt 0:00:21]} 18. Bd2 {[%emt 0:00:45]} a6 {[%emt 0:10:38]} 19. b5 {[%emt 0:29:18]} axb5 {[%emt 0:14:28]} 20. Qxb5 {[%emt 0:00:12]} Na5 {[%emt 0:00:59]} 21. a4 {[%emt 0:44:55]} Nc4 {[%emt 0:17:39]} 22. Rec1 {[%emt 0:03:48]} Rc7 {[%emt 0:05:05]} 23. Be1 {[%emt 0:01:22]} Bg5 {[%emt 0:21:17]} 24. Rc3 {[%emt 0:05:00]} Bh6 {[%emt 0:00:46]} 25. h4 {[%emt 0:03:36]} Qd7 {[%emt 0:08:10]} 26. Qb4 {[%emt 0:02:10]} Rca7 {[%emt 0:01:02]} 27. Rxc4 {[%emt 0:00:24]} dxc4 {[%emt 0:00:18]} 28. Qxb6 {[%emt 0:00:21]} Ra6 {[%emt 0:06:38]} 29. Qc5 {[%emt 0:00:46]} Rc8 {[%emt 0:02:20]} 30. Qb4 {[%emt 0:00:31]} Qc6 {[%emt 0:00:36]} 31. Bc3 {[%emt 0:01:01]} Rb6 {[%emt 0:00:16]} 32. Qe7 {[%emt 0:01:45]} Rb7 {[%emt 0:02:33]} 33. Qd6 {[%emt 0:00:35]} Rb3 {[%emt 0:00:37]} 34. Qxc6 {[%emt 0:00:40]} Rxc6 {[%emt 0:00:02]} 35. d5 {[%emt 0:00:01]} Rc8 {[%emt 0:01:17]} 36. Ba5 {[%emt 0:00:54]} exd5 {[%emt 0:00:43]} 37. Nd4 {[%emt 0:00:32]} Rd3 {[%emt 0:01:14]} 38. Nxf5 {[%emt 0:01:03]} Ra8 {[%emt 0:00:14]} 39. Bb4 {[%emt 0:00:33]} c3 {[%emt 0:00:31]} 40. Nxh6+ {[%emt 0:00:30]} gxh6 {[%emt 0:00:11]} 41. Kf1 {[%emt 0:15:48]} c2 {[%emt 0:02:30]} 42. Ke2 {[%emt 0:00:51]} Rb3 {[%emt 0:00:05]} 43. Bd2 {[%emt 0:00:29]} Rb1 {[%emt 0:00:06]} 0-1

[Event "German Bundesliga 2023-24"]
[Site "Germany"]
[Date "2024.02.23"]
[Round "9.54"]
[White "Maiwald, Jens-Uwe"]
[Black "Pubantz, Jan"]
[Result "1-0"]
[ECO "B12"]
[WhiteElo "2445"]
[BlackElo "2299"]
[Annotator "RC"]
[PlyCount "93"]
[EventDate "2023.10.20"]
[EventType "team-tourn"]
[EventCountry "GER"]
[SourceTitle "playchess.com"]
[Source "ChessBase"]
[SourceQuality "1"]
[TimeControl "40/6000+30:3000+30"]

1. e4 {[%emt 0:00:33]} c6 {[%emt 0:00:05]} 2. d4 {[%emt 0:00:24]} d5 {[%emt 0:00:06]} 3. e5 {[%emt 0:00:08]} Bf5 {[%emt 0:00:09]} 4. h4 {[%emt 0:00:47]} h6 {[%emt 0:00:26]} 5. g4 {[%emt 0:00:52]} Be4 {[%emt 0:00:10]} 6. f3 {[%emt 0:00:13]} Bh7 {[%emt 0:00:06]} 7. e6 {[%emt 0:00:22]} c5 {[%emt 0:00:34]} 8. dxc5 {[%emt 0:16:31]} Nc6 {[%emt 0:00:32]} 9. Nc3 {[%emt 0:14:27]} fxe6 {[%emt 0:01:31]} 10. Bd3 {[%emt 0:01:10]} Nf6 {[%emt 0:01:19]} 11. Nh3 {[%emt 0:10:04]} Nd7 {[%emt 0:23:20]} 12. Bxh7 {[%emt 0:07:54]} Rxh7 {[%emt 0:00:03]} 13. Qd3 {[%emt 0:00:11]} g6 {[%emt 0:04:28]} 14. Bf4 {[%emt 0:10:22]} Rf7 {[%emt 0:08:41]} 15. O-O-O {[%emt 0:01:06]} Bg7 {[%emt 0:18:16]} 16. Rhe1 {[%emt 0:04:40]} Nde5 {[%emt 0:11:35]} 17. Bxe5 {[%emt 0:12:51]} Nxe5 {[%emt 0:02:05]} 18. Rxe5 {[%emt 0:00:12]} Bxe5 {[%emt 0:00:38]} 19. Qxg6 {[%emt 0:00:08]} Bxc3 {[%emt 0:03:25]} 20. bxc3 {[%emt 0:00:12]} Qc7 {[%emt 0:10:08]} 21. g5 {[%emt 0:05:31]} Qe5 {[%emt 0:06:13]} 22. gxh6 {[%emt 0:02:39]} Qf5 {[%emt 0:07:02]} 23. Qg4 {[%emt 0:11:39]} O-O-O {[%emt 0:07:29]} 24. Ng5 {[%emt 0:01:04]} Rf6 {[%emt 0:00:34]} 25. Qxf5 {[%emt 0:02:17]} Rxf5 {[%emt 0:01:37]} 26. h7 {[%emt 0:03:12]} Rf6 {[%emt 0:01:35]} 27. c4 {[%emt 0:00:33]} Rh8 {[%emt 0:01:18]} 28. cxd5 {[%emt 0:00:12]} exd5 {[%emt 0:00:12]} 29. Rxd5 {[%emt 0:00:12]} Rf4 {[%emt 0:00:48]} 30. h5 {[%emt 0:01:26]} Rh4 {[%emt 0:00:31]} 31. Ne6 {[%emt 0:00:11]} a6 {[%emt 0:00:28]} 32. Rg5 {[%emt 0:02:19]} Kd7 {[%emt 0:00:31]} 33. Rg8 {[%emt 0:00:09]} Kxe6 {[%emt 0:00:29]} 34. Rxh8 {[%emt 0:00:06]} Rxh5 {[%emt 0:00:40]} 35. Kb2 {[%emt 0:01:33]} Rh3 {[%emt 0:00:04]} 36. c3 {[%emt 0:00:43]} Kd7 {[%emt 0:00:36]} 37. Kb3 {[%emt 0:00:21]} Rh4 {[%emt 0:00:07]} 38. f4 {[%emt 0:00:27]} Ke6 {[%emt 0:00:59]} 39. a3 {[%emt 0:01:13]} Kd7 {[%emt 0:00:20]} 40. f5 {[%emt 0:00:33]} Kc7 {[%emt 0:00:44]} 41. c6 {[%emt 0:08:43]} Kb6 {[%emt 0:02:48]} 42. c4 {[%emt 0:02:56]} Rh3+ {[%emt 0:06:05]} 43. Kc2 {[%emt 0:01:20]} Kc7 {[%emt 0:03:04]} 44. cxb7 {[%emt 0:08:17]} Kxb7 {[%emt 0:00:56]} 45. c5 {[%emt 0:00:50]} Rh6 {[%emt 0:01:24]} 46. Kd2 {[%emt 0:01:00]} Rh2+ {[%emt 0:01:06]} 47. Ke3 {[%emt 0:00:39]} 1-0

[Event "German Bundesliga 2023-24"]
[Site "Germany"]
[Date "2024.02.23"]
[Round "9.55"]
[White "Hampel, Felix"]
[Black "Boensch, Uwe"]
[Result "0-1"]
[ECO "E12"]
[WhiteElo "2298"]
[BlackElo "2456"]
[Annotator "TA"]
[PlyCount "60"]
[EventDate "2023.10.20"]
[EventType "team-tourn"]
[EventCountry "GER"]
[SourceTitle "playchess.com"]
[Source "ChessBase"]
[SourceQuality "1"]
[TimeControl "40/6000+30:3000+30"]

{[%evp 10,59,12,-10,-3,-16,0,-57,-22,-22,-19,-25,-8,-31,-22,-24,0,0,0,-32,-21,-14,-24,-59,-56,-93,-65,-103,-118,-116,-84,-70,-27,-37,-64,-65,-47,-478,-391,-1964,-672,-585,0,-2100,-2090,-1735,-1078,-5506,-5477,-29998,-29999,-29999]} 1. c4 {[%emt 0:00:04]} e6 {[%emt 0:00:31]} 2. Nf3 {[%emt 0:00:07]} b6 {[%emt 0:01:50]} 3. Nc3 {[%emt 0:00:39]} Bb7 {[%emt 0:00:23]} 4. a3 {[%emt 0:00:50]} Nf6 {[%emt 0:02:45]} 5. d4 {[%emt 0:00:14]} d5 {[%emt 0:02:10]} 6. e3 {[%emt 0:03:41]} Nbd7 {[%emt 0:05:19]} 7. Bd3 {[%emt 0:07:26]} Bd6 {[%emt 0:10:04]} 8. Qc2 {[%emt 0:12:40]} ({White should try} 8. b4 $11) 8... c5 {[%emt 0:08:37] Black is slightly better.} 9. cxd5 {[%emt 0:04:59]} exd5 {[%emt 0:01:35]} 10. dxc5 {[%emt 0:06:49]} bxc5 {[%emt 0:02:58]} 11. O-O {[%emt 0:03:25]} O-O {[%emt 0:02:22]} 12. b4 {[%emt 0:08:29]} Rc8 {[%emt 0:26:42]} 13. Nb5 {[%emt 0:03:47][%csl LRa7,LRd6]} Ne5 {[%emt 0:12:24]} 14. Nxd6 {[%emt 0:24:39]} Nxf3+ {[%emt 0:00:38]} 15. gxf3 {[%emt 0:00:05]} Qxd6 {[%emt 0:00:06]} 16. bxc5 {[%emt 0:01:02]} Rxc5 {[%emt 0:00:12]} 17. Qb2 {[%emt 0:02:32]} Ba6 {[%emt 0:08:37]} 18. Qe2 {[%emt 0:10:33]} Bxd3 {[%emt 0:05:59]} 19. Qxd3 {[%emt 0:00:49]} Qe5 $40 {[%emt 0:00:01][%mdl 128] Dodges Bb2. White is in trouble. Black is more active.} 20. Bd2 {[%emt 0:02:32] White is weak on the light squares} Qg5+ {[%emt 0:00:39]} (20... Qh5 {looks sharper.} 21. Bb4 Ne4 22. Qd1 Rc6) 21. Kh1 {[%emt 0:00:06]} Qh5 {[%emt 0:00:03]} 22. e4 $1 {[%emt 0:00:59]} Qh3 {[%emt 0:04:54][%cal Of6e4] And now ...Nxe4! would win.} 23. e5 {[%emt 0:01:49][%mdl 8192] [#]} (23. Qe3 $15 Rfc8 24. Rad1) 23... Ne4 $1 {[%emt 0:03:01][%mdl 512] aiming for ...Nxd2.} 24. Be1 {[%emt 0:07:38]} (24. Bf4 Rc3 25. Qe2 Rxf3 (25... Qxf3+ 26. Qxf3 Rxf3 27. Be3 $17) 26. Be3) (24. Rae1 Nxd2) 24... Ng5 {[%emt 0:01:12]} (24... Rc2 $142 25. Bd2 Rxd2 (25... Nxd2 $2 26. Rg1 $19)) 25. Bd2 $19 {[%emt 0:02:21] [#]} Ne4 {[%emt 0:03:12]} 26. Be1 $1 {[%emt 0:00:06] [#]} ({Don't go for} 26. Bb4 $2 Rc6 27. Bd6 (27. Bxf8 $2 {gets mated.} Rh6 28. fxe4 Qxh2#) 27... Rfc8 $19 (27... Nxd6 $2 28. exd6 Rxd6 29. Rg1 $19)) 26... Rc2 $3 {[%emt 0:03:37][%mdl 512] ( -> ...Nc5)} 27. Rd1 {[%emt 0:02:08]} Ng5 {[%emt 0:00:16]} 28. Bd2 {[%emt 0:02:20] [#]} Rxd2 $1 {[%emt 0:00:19][%mdl 512]} 29. Qxd2 {[%emt 0:00:08]} (29. Qe3 Rxd1) 29... Qxf3+ {[%emt 0:00:07]} 30. Kg1 {[%emt 0:00:03]} Nh3# {[%emt 0:00:05] Weighted Error Value: White=0.89/Black=0.80.  Loses game:     	White=1     	---        Mistake:       	White=2     	Black=1      Inaccurate:     	White=4     	Black=2      OK:         	White=6     	Black=6      Best:        	White=1     	Black=1      Strong:       	White=1     	---        Brilliant:      	---       	Black=1} 0-1

[Event "German Bundesliga 2023-24"]
[Site "Germany"]
[Date "2024.02.23"]
[Round "9.56"]
[White "Tischbierek, Raj"]
[Black "Voege, Tobias"]
[Result "1-0"]
[ECO "C11"]
[WhiteElo "2423"]
[BlackElo "2283"]
[Annotator "RC"]
[PlyCount "109"]
[EventDate "2023.10.20"]
[EventType "team-tourn"]
[EventCountry "GER"]
[SourceTitle "playchess.com"]
[Source "ChessBase"]
[SourceQuality "1"]
[TimeControl "40/6000+30:3000+30"]

1. e4 {[%emt 0:00:14]} e6 {[%emt 0:00:06]} 2. d4 {[%emt 0:00:25]} d5 {[%emt 0:00:06]} 3. Nc3 {[%emt 0:00:04]} Nf6 {[%emt 0:00:19]} 4. e5 {[%emt 0:00:51]} Nfd7 {[%emt 0:00:05]} 5. Nf3 {[%emt 0:00:05]} c5 {[%emt 0:00:05]} 6. dxc5 {[%emt 0:00:08]} Nc6 {[%emt 0:00:23]} 7. Bf4 {[%emt 0:00:13]} Bxc5 {[%emt 0:01:02]} 8. Bd3 {[%emt 0:00:23]} f6 {[%emt 0:02:04]} 9. exf6 {[%emt 0:00:06]} Nxf6 {[%emt 0:00:08]} 10. O-O {[%emt 0:00:58]} O-O {[%emt 0:00:32]} 11. Bg3 {[%emt 0:00:28]} Bd7 {[%emt 0:05:05]} 12. Na4 {[%emt 0:04:27]} Be7 {[%emt 0:06:58]} 13. c4 {[%emt 0:00:20]} Nb4 {[%emt 0:06:48]} 14. Nc3 {[%emt 0:04:17]} Nxd3 {[%emt 0:14:34]} 15. Qxd3 {[%emt 0:00:30]} dxc4 {[%emt 0:09:11]} 16. Qxc4 {[%emt 0:01:08]} Rc8 {[%emt 0:00:27]} 17. Qe2 {[%emt 0:25:07]} Nd5 {[%emt 0:05:21]} 18. Ne5 {[%emt 0:25:37]} Nxc3 {[%emt 0:30:09]} 19. bxc3 {[%emt 0:00:12]} Bf6 {[%emt 0:01:17]} 20. Rfd1 {[%emt 0:03:08]} Bxe5 {[%emt 0:01:30]} 21. Bxe5 {[%emt 0:00:52]} Qe8 {[%emt 0:03:40]} 22. Rab1 {[%emt 0:01:14]} Bc6 {[%emt 0:03:08]} 23. Rb4 {[%emt 0:01:41]} Rd8 {[%emt 0:02:04]} 24. Re1 {[%emt 0:08:54]} Rf7 {[%emt 0:03:25]} 25. Rg4 {[%emt 0:01:57]} b5 {[%emt 0:04:33]} 26. f3 {[%emt 0:02:35]} Bd5 {[%emt 0:01:38]} 27. Qf2 {[%emt 0:00:56]} Qc6 {[%emt 0:04:45]} 28. Bd4 {[%emt 0:01:38]} Rdd7 {[%emt 0:00:56]} 29. h3 {[%emt 0:03:47]} Bc4 {[%emt 0:00:35]} 30. Re5 {[%emt 0:06:23]} Rd5 {[%emt 0:01:23]} 31. Qg3 {[%emt 0:01:35]} Rxe5 {[%emt 0:00:33]} 32. Bxe5 {[%emt 0:00:20]} Qb7 {[%emt 0:00:41]} 33. a3 {[%emt 0:01:02]} Bd3 {[%emt 0:00:40]} 34. Rd4 {[%emt 0:04:22]} Rd7 {[%emt 0:01:01]} 35. Bxg7 {[%emt 0:02:31]} Bg6 {[%emt 0:01:09]} 36. Rxd7 {[%emt 0:01:06]} Qxd7 {[%emt 0:00:04]} 37. Bd4 {[%emt 0:00:28]} Qd5 {[%emt 0:01:43]} 38. Qb8+ {[%emt 0:01:07]} Kf7 {[%emt 0:00:03]} 39. Qxa7+ {[%emt 0:00:08]} Ke8 {[%emt 0:00:21]} 40. Qb8+ {[%emt 0:00:49]} Kd7 {[%emt 0:00:47]} 41. Be5 {[%emt 0:53:24]} Qc6 {[%emt 0:02:42]} 42. Kh2 {[%emt 0:00:00]} Qc5 {[%emt 0:02:47]} 43. Kg3 {[%emt 0:00:00]} Bd3 {[%emt 0:01:53]} 44. h4 {[%emt 0:00:00]} Bg6 {[%emt 0:02:44]} 45. Kf4 {[%emt 0:00:00]} Bf5 {[%emt 0:02:53]} 46. g4 {[%emt 0:00:00]} Bc2 {[%emt 0:00:54]} 47. h5 {[%emt 0:00:00]} Bd3 {[%emt 0:00:12]} 48. Qg8 {[%emt 0:00:00]} Qxa3 {[%emt 0:01:06]} 49. Kg5 {[%emt 0:00:00]} Qe7+ {[%emt 0:02:58]} 50. Kh6 {[%emt 0:00:00]} Qe8 {[%emt 0:11:16]} 51. Qxe8+ {[%emt 0:00:00]} Kxe8 {[%emt 0:00:04]} 52. Kg7 {[%emt 0:00:00]} Be2 {[%emt 0:00:18]} 53. g5 {[%emt 0:00:00]} Bxf3 {[%emt 0:01:04]} 54. g6 {[%emt 0:00:00]} h6 {[%emt 0:01:00]} 55. Kxh6 {[%emt 0:00:00]} 1-0

[Event "German Bundesliga 2023-24"]
[Site "Germany"]
[Date "2024.02.25"]
[Round "11.1"]
[White "Eljanov, Pavel"]
[Black "Kadric, Denis"]
[Result "1-0"]
[ECO "E71"]
[WhiteElo "2695"]
[BlackElo "2579"]
[Annotator "TA"]
[PlyCount "45"]
[EventDate "2023.10.20"]
[EventType "team-tourn"]
[EventCountry "GER"]
[SourceTitle "playchess.com"]
[Source "ChessBase"]
[SourceQuality "1"]
[TimeControl "40/6000+30:3000+30"]

{[%evp 9,45,33,58,31,41,33,42,35,46,41,59,58,74,64,80,86,95,65,82,72,74,75,62,74,87,48,206,229,437,440,433,425,434,431,933,828,1132,1111]} 1. d4 {[%emt 0:00:04]} Nf6 {[%emt 0:00:05]} 2. c4 {[%emt 0:00:06]} g6 {[%emt 0:00:04]} 3. Nc3 {[%emt 0:00:04]} Bg7 {[%emt 0:00:02]} 4. e4 {[%emt 0:00:10]} d6 {[%emt 0:00:03]} 5. h3 {[%emt 0:00:22]} e5 {[%emt 0:00:14]} 6. d5 {[%emt 0:00:09]} a5 {[%emt 0:00:31]} 7. Bg5 {[%emt 0:00:42]} Na6 {[%emt 0:01:41]} 8. Bd3 {[%emt 0:02:28] White is slightly better.} Bd7 {[%emt 0:05:39]} 9. Nge2 {[%emt 0:01:09]} h6 {[%emt 0:07:45]} 10. Be3 {[%emt 0:00:16]} h5 {[%emt 0:00:06]} 11. Qd2 {[%emt 0:05:23]} a4 {[%emt 0:03:13]} 12. O-O {[%emt 0:03:13]} O-O {[%emt 0:00:37]} 13. Kh1 {[%emt 0:17:02]} c6 {[%emt 0:25:32][%cal Bc7c6,Bc6d5,Bd5e4][%mdl 32]} 14. f4 {[%emt 0:06:24][%cal Bf2f4,Bf4e5][%mdl 32]} (14. Nxa4 cxd5 15. Nac3 d4 16. Nxd4 exd4 17. Bxd4 Re8 $19) 14... cxd5 {[%emt 0:05:06] aiming for ...d4.} 15. fxe5 {[%emt 0:08:17]} (15. Nxd5 $6 Nxd5 16. exd5 exf4 (16... Nc5 17. Bxc5 dxc5 18. f5 $15) 17. Bxf4 Qf6 $11) 15... Nxe4 {[%emt 0:09:44]} 16. Bxe4 {[%emt 0:03:54]} dxe4 {[%emt 0:00:04]} 17. Bg5 {[%emt 0:06:04][%cal Be3g5,Bg5f6,Bf6g7][%mdl 32] White is much more active.} (17. Qxd6 Bc6 $11) 17... Qc8 {[%emt 0:18:23] This move loses the game for Black.} (17... Qa5 $1 $14) 18. Nd5 $18 {[%emt 0:09:20] And now Ne7+ would win.} (18. exd6 Qxc4 19. Bf6 Rae8 $11) (18. Nxe4 Bc6 (18... Qxc4 $2 19. Nf6+ Bxf6 20. Bxf6 $18) 19. N2c3 dxe5 $14) (18. Qxd6 a3 $14) 18... Qxc4 $2 {[%emt 0:00:09] [#]} (18... Kh7 19. Nb6 (19. exd6 f5 $18) 19... Qe8 20. Nxa8 (20. exd6 f6 $18) (20. Qxd6 Bc6 $18) 20... Qxa8) 19. Nf6+ $1 {[%emt 0:00:49] White is clearly winning.} (19. exd6 Qd3 $11) 19... Bxf6 {[%emt 0:01:00]} 20. Bxf6 {[%emt 0:00:04]} Kh7 {[%emt 0:00:02] [#] Prevents Qh6+.} 21. Ng3 $1 {[%emt 0:06:48]} (21. exd6 Bc6 $16) 21... Nc5 {[%emt 0:26:19] [#]} (21... e3 $142 22. Qxe3 Rac8 23. Nxh5 (23. exd6 Rfe8 $18) 23... a3) 22. Nxh5 $1 {[%emt 0:06:16][%mdl 512]} Ne6 {[%emt 0:01:10] [#] Prevents Bg7} (22... e3 23. Qxe3) 23. Bg7 $1 {[%emt 0:02:13][%mdl 512] Weighted Error Value: White=0.07 (flawless) /Black=0.47.  Mistake:       	---       	Black=3      Inaccurate:     	White=2     	Black=1      OK:         	White=7     	Black=5      Strong:       	White=2     	---        Brilliant:      	White=1     	---} 1-0

[Event "German Bundesliga 2023-24"]
[Site "Germany"]
[Date "2024.02.25"]
[Round "11.2"]
[White "Brkic, Ante"]
[Black "Shengelia, David"]
[Result "1-0"]
[ECO "B47"]
[WhiteElo "2606"]
[BlackElo "2494"]
[Annotator "ChessBase"]
[PlyCount "61"]
[EventDate "2023.10.20"]
[EventType "team-tourn"]
[EventCountry "GER"]
[SourceTitle "playchess.com"]
[Source "ChessBase"]
[SourceQuality "1"]
[TimeControl "40/6000+30:3000+30"]

1. e4 {[%emt 0:00:02]} c5 {[%emt 0:00:15]} 2. Nf3 {[%emt 0:00:06]} e6 {[%emt 0:00:06]} 3. d4 {[%emt 0:00:13]} cxd4 {[%emt 0:00:05]} 4. Nxd4 {[%emt 0:00:05]} Nc6 {[%emt 0:00:07]} 5. Nc3 {[%emt 0:00:05]} Qc7 {[%emt 0:00:09]} 6. Be2 {[%emt 0:02:43]} Nf6 {[%emt 0:01:49]} 7. Ndb5 {[%emt 0:04:48]} Qb8 {[%emt 0:01:15]} 8. f4 {[%emt 0:00:15]} a6 {[%emt 0:03:35]} 9. e5 {[%emt 0:00:58]} axb5 {[%emt 0:01:20]} 10. exf6 {[%emt 0:00:07]} b4 {[%emt 0:02:18]} 11. fxg7 {[%emt 0:04:30]} Bxg7 {[%emt 0:00:05]} 12. Nb5 {[%emt 0:00:09]} d5 {[%emt 0:08:27]} 13. O-O {[%emt 0:04:24]} O-O {[%emt 0:01:36]} 14. Bd3 {[%emt 0:00:16]} f5 {[%emt 0:04:22]} 15. c3 {[%emt 0:00:17]} d4 {[%emt 0:08:47]} 16. cxd4 {[%emt 0:22:52]} Nxd4 {[%emt 0:00:38]} 17. Be3 {[%emt 0:01:39]} Nxb5 {[%emt 0:16:55]} 18. Bxb5 {[%emt 0:00:06]} Bxb2 {[%emt 0:18:14]} 19. Rb1 {[%emt 0:27:50]} Bf6 {[%emt 0:02:32]} 20. Bb6 {[%emt 0:15:12]} Rxa2 {[%emt 0:03:20]} 21. Rxb4 {[%emt 0:00:44]} Ra1 {[%emt 0:11:39]} 22. Qd3 {[%emt 0:03:06]} Qa8 {[%emt 0:00:14]} 23. Rxa1 {[%emt 0:07:51]} Qxa1+ {[%emt 0:00:09]} 24. Rb1 {[%emt 0:00:07]} Qa2 {[%emt 0:05:16]} 25. Rd1 {[%emt 0:04:02]} Qb2 {[%emt 0:00:29]} 26. Rb1 {[%emt 0:01:25]} Qa2 {[%emt 0:00:03]} 27. Rd1 {[%emt 0:00:03]} Qb2 {[%emt 0:00:03]} 28. Bc5 {[%emt 0:05:04]} Rf7 {[%emt 0:01:44]} 29. Ba3 {[%emt 0:00:54]} Bd4+ {[%emt 0:07:21]} 30. Kh1 {[%emt 0:00:11]} Qa2 {[%emt 0:00:38]} 31. Bc4 {[%emt 0:00:29]} 1-0